bitfinex/quotes_ETHUSD_20241204
["timestamp","ask_amount","ask_price","bid_price","bid_amount"]
[1733319161157,8.84,3701.8,3700.5,2.70233]
[1733319161158,8.84,3701.8,3700.9,2.702]
[1733319161375,8.84,3701.8,3700.2,2.70249]
[1733319161529,7.36666,3701.7,3700.5,2.70232]
[1733319161714,3.0,3701.6,3700.6,2.70224]
[1733319161917,4.6652,3701.7,3700.0,1.5469]
[1733319162226,8.84,3701.6,3700.4,2.70241]
[1733319162438,8.84,3701.6,3700.8,2.70206]
[1733319162790,1.6652,3701.7,3701.3,2.70175]
[1733319162913,1.6652,3701.7,3700.9,2.70201]
[1733319163117,1.6652,3701.7,3701.6,2.70153]
[1733319163313,3.0,3702.2,3701.0,1.771401]
[1733319163314,1.5396,3702.2,3701.0,1.771401]
[1733319163554,1.5396,3702.2,3702.0,2.70123]
[1733319163758,8.84,3702.5,3702.2,2.70109]
[1733319163918,1.5396,3702.6,3701.0,1.771401]
[1733319163919,1.5396,3702.6,3701.4,0.02700959]
[1733319164117,1.5396,3702.6,3701.0,1.771401]
[1733319164118,1.5396,3702.6,3701.9,2.70124]
[1733319164319,1.5396,3702.6,3702.3,2.701]
[1733319164567,1.5396,3702.6,3701.6,2.70147]
[1733319164873,1.5396,3702.6,3700.8,2.70205]
[1733319164874,2.70117,3702.1,3700.8,2.70205]
[1733319165040,8.84,3701.9,3701.1,2.70189]
[1733319165217,8.84,3701.9,3700.4,2.70235]
[1733319165427,8.84,3701.9,3700.2,1.5049]
[1733319165656,8.84,3701.9,3700.6,2.70219]
[1733319165864,8.84,3701.9,3700.3,2.70248]
[1733319165865,2.70152,3701.7,3700.3,2.70248]
[1733319166065,8.84,3701.7,3700.1,0.0270209]
[1733319166566,8.84,3701.7,3700.2,2.70255]
[1733319166726,1.5468,3701.8,3701.3,2.70173]
[1733319166926,1.5468,3701.8,3701.0,2.70192]
[1733319167127,1.5468,3701.8,3701.1,2.70189]
[1733319167432,1.5468,3701.8,3700.6,2.70226]
[1733319167632,1.5468,3701.8,3700.9,2.70203]
[1733319168966,1.5468,3701.8,3700.8,2.70211]
[1733319169272,1.5468,3701.8,3700.7,2.70218]
[1733319169423,1.5468,3701.8,3700.1,1.5648]
[1733319169424,1.5468,3701.8,3700.8,2.7021]
[1733319169624,1.5468,3701.8,3701.1,2.70189]
[1733319169943,1.5468,3701.8,3700.1,1.5648]
[1733319170126,1.5468,3701.8,3700.2,3.1860451]
[1733319170575,2.70042,3703.2,3700.2,3.1860451]
[1733319170576,8.84,3701.9,3701.7,2.70146]
[1733319170730,8.84,3701.9,3701.1,1.5137]
[1733319171068,8.84,3701.9,3701.6,2.70151]
[1733319171269,1.5722,3702.3,3701.2,0.02701271]
[1733319171503,1.5722,3702.3,3701.9,2.70127]
[1733319171871,1.5722,3702.3,3701.8,2.70138]
[1733319172057,1.5722,3702.3,3701.7,2.70145]
[1733319172257,1.5722,3702.3,3701.3,0.15407127]
[1733319172458,1.5722,3702.3,3702.0,2.70121]
[1733319172760,1.5722,3702.3,3702.1,2.70112]
[1733319172960,1.5722,3702.3,3702.0,2.70119]
[1733319173382,1.5722,3702.3,3701.8,2.70138]
[1733319173569,1.5722,3702.3,3701.9,2.70131]
[1733319174497,8.84,3703.1,3701.9,0.270131]
[1733319174699,1.5169,3703.0,3701.4,2.7286295]
[1733319175220,8.84,3703.3,3702.8,2.70064]
[1733319175432,8.84,3703.3,3702.9,2.70057]
[1733319175738,4.0,3703.0,3702.9,2.70057]
[1733319175878,8.84,3703.3,3702.7,2.70072]
[1733319176080,8.84,3703.3,3702.7,2.70067]
[1733319176312,8.84,3703.3,3702.5,1.63280421]
[1733319176479,8.84,3703.3,3702.7,2.7007]
[1733319176679,1.5917,3703.4,3702.3,2.70102]
[1733319176876,1.5917,3703.4,3702.7,2.70066]
[1733319177305,1.5917,3703.4,3702.4,0.430682]
[1733319177306,1.5917,3703.4,3702.5,0.02700362]
[1733319177517,1.6247,3704.0,3702.6,2.7008]
[1733319177722,1.6247,3704.0,3702.6,2.72779984]
[1733319178021,1.6247,3704.0,3702.1,1.63279984]
[1733319178218,1.6247,3704.0,3702.2,0.46327998]
[1733319178416,1.6247,3704.0,3703.1,1.6165]
[1733319178830,1.6247,3704.0,3703.7,2.69996]
[1733319179317,1.6247,3704.0,3703.9,2.69985]
[1733319179624,10.375,3704.6,3703.4,0.02699751]
[1733319179921,10.375,3704.6,3703.6,2.70002]
[1733319180106,8.84,3704.5,3703.3,2.70023]
[1733319180315,1.535,3704.6,3703.4,0.431673]
[1733319180484,10.375,3704.6,3703.8,2.69992]
[1733319180691,10.375,3704.6,3703.0,0.02699576]
[1733319180692,8.84,3704.5,3703.0,0.02699576]
[1733319180881,10.375,3704.6,3703.1,1.586]
[1733319181088,10.375,3704.6,3703.5,2.70007]
[1733319181329,10.375,3704.6,3703.6,2.70001]
[1733319181623,10.375,3704.6,3703.1,1.586]
[1733319181795,10.375,3704.6,3703.7,2.69996]
[1733319181995,1.535,3704.6,3703.6,2.70007]
[1733319182208,1.535,3704.6,3703.8,2.69986]
[1733319182410,1.535,3704.6,3703.3,3.0]
[1733319182640,1.535,3704.6,3703.5,3.0]
[1733319182842,1.535,3704.6,3704.0,2.69972]
[1733319183038,1.535,3704.6,3703.8,2.69992]
[1733319183247,1.535,3704.6,3703.2,0.4586]
[1733319183395,1.535,3704.6,3702.8,0.53502289]
[1733319183396,4.23441,3704.6,3703.4,2.70021]
[1733319183594,2.69942,3704.5,3703.4,2.70021]
[1733319183820,8.84,3704.5,3702.8,1.5705]
[1733319184027,8.84,3704.5,3701.8,2.70134]
[1733319184028,8.84,3704.0,3702.9,2.70051]
[1733319184441,2.6999,3703.9,3702.6,2.70075]
[1733319184739,8.84,3703.7,3702.3,1.5705]
[1733319184947,8.84,3703.7,3701.2,2.70182]
[1733319184948,8.84,3703.3,3701.8,2.70138]
[1733319185110,8.84,3703.3,3701.2,2.70182]
[1733319185111,1.6015,3703.1,3701.6,1.5705]
[1733319185293,1.6015,3703.1,3701.6,4.27197]
[1733319185498,1.6015,3703.1,3701.7,2.70146]
[1733319185701,1.6015,3703.1,3701.2,2.70182]
[1733319185702,1.6015,3703.1,3701.8,0.427196]
[1733319185900,8.84,3703.3,3701.5,2.70153]
[1733319186228,8.84,3703.3,3700.3,0.02700673]
[1733319186229,8.84,3702.2,3701.0,2.70193]
[1733319186553,8.84,3702.2,3701.7,2.70145]
[1733319186713,8.84,3702.2,3701.9,2.7013]
[1733319187039,8.84,3702.2,3701.0,2.72896174]
[1733319187040,1.5976,3702.8,3701.2,2.70182]
[1733319187253,1.5976,3702.8,3702.1,2.70113]
[1733319187557,1.5976,3702.8,3701.3,0.45880128]
[1733319187558,1.5976,3702.8,3702.5,2.70087]
[1733319187704,1.5976,3702.8,3701.6,2.70153]
[1733319187705,1.5976,3702.8,3702.6,2.70079]
[1733319187912,1.5976,3702.8,3701.8,2.70138]
[1733319188104,1.5976,3702.8,3701.3,3.43179317]
[1733319188308,1.5976,3702.8,3702.1,2.70116]
[1733319188607,1.5976,3702.8,3701.6,0.02700901]
[1733319188804,1.5976,3702.8,3702.3,2.70098]
[1733319189024,1.5976,3702.8,3702.0,2.70117]
[1733319189229,1.5976,3702.8,3702.0,2.45517]
[1733319189611,1.5976,3702.8,3701.5,3.0]
[1733319189817,1.5976,3702.8,3701.9,2.70127]
[1733319190018,1.5976,3702.8,3701.7,2.70144]
[1733319190334,2.70084,3702.6,3701.6,2.70152]
[1733319191217,1.5976,3702.8,3701.4,0.50208932]
[1733319191543,1.5976,3702.8,3701.8,2.70136]
[1733319191721,1.5976,3702.8,3701.9,2.70131]
[1733319192040,1.5976,3702.8,3702.3,2.70095]
[1733319192251,1.5976,3702.8,3701.1,1.5891]
[1733319192252,1.5976,3702.8,3701.9,1.5623]
[1733319192416,1.5309,3703.3,3702.9,2.70057]
[1733319192602,1.5309,3703.3,3702.0,2.70124]
[1733319192805,1.5309,3703.3,3702.1,0.426354]
[1733319193030,2.70074,3702.7,3701.5,2.70158]
[1733319193232,2.70074,3702.7,3701.2,4.5248]
[1733319193233,4.31277,3702.8,3701.2,3.0]
[1733319193414,4.31277,3702.8,3701.7,2.70145]
[1733319193618,1.6121,3702.8,3701.8,2.70135]
[1733319193805,1.6121,3702.8,3701.5,2.72855076]
[1733319193806,8.84,3702.7,3701.5,2.72855076]
[1733319194006,8.84,3702.7,3701.6,0.27285508]
[1733319194245,8.84,3702.7,3701.7,0.02701076]
[1733319194445,8.84,3702.7,3701.5,0.02701016]
[1733319194757,1.6121,3702.8,3701.5,0.02701016]
[1733319194758,1.6121,3702.8,3702.7,2.70073]
[1733319194934,8.84,3703.4,3702.3,2.701]
[1733319194935,1.5544,3703.3,3702.3,2.701]
[1733319195258,1.5544,3703.3,3702.9,2.70057]
[1733319195569,1.5544,3703.3,3701.7,4.5799]
[1733319195738,1.5544,3703.3,3702.7,2.70069]
[1733319196226,1.5544,3703.3,3703.2,2.70036]
[1733319196424,1.5544,3703.3,3702.8,2.70062]
[1733319196620,1.5544,3703.3,3703.1,2.70042]
[1733319197537,8.84,3705.1,3703.5,2.70014]
[1733319197742,8.84,3705.0,3703.6,0.29700927]
[1733319197933,8.84,3705.3,3704.3,2.69949]
[1733319198135,9.11979998,3705.3,3704.4,2.69944]
[1733319198354,9.11979998,3705.3,3703.6,0.270014]
[1733319198541,9.11979998,3705.3,3703.6,2.970064]
[1733319198876,9.11979998,3705.3,3704.3,2.69955]
[1733319199029,9.11979998,3705.3,3703.7,0.32400019]
[1733319199030,9.11979998,3705.3,3703.9,0.02699379]
[1733319199379,9.11979998,3705.3,3703.8,0.02699308]
[1733319199535,9.11979998,3705.3,3703.7,0.2970064]
[1733319199879,9.11979998,3705.3,3703.8,0.02699204]
[1733319200032,9.11979998,3705.3,3704.5,2.6994]
[1733319200234,3.81901201,3706.7,3705.1,2.69894]
[1733319200235,8.84,3706.3,3705.1,2.69894]
[1733319200534,1.80176316,3706.0,3704.8,2.69914]
[1733319200734,2.69842,3705.9,3704.6,0.26994]
[1733319200928,1.5379,3705.8,3704.6,0.26994]
[1733319201134,1.5379,3705.8,3705.0,2.69905]
[1733319201570,1.5379,3705.8,3705.1,2.69892]
[1733319201873,1.5379,3705.8,3705.3,2.69883]
[1733319202174,1.5379,3705.8,3705.1,2.69896]
[1733319202383,0.27946316,3706.0,3705.0,0.269905]
[1733319202384,0.27946316,3706.0,3705.9,2.69839]
[1733319202676,0.27946316,3706.0,3705.9,2.968229]
[1733319202974,0.27946316,3706.0,3705.9,2.99520554]
[1733319203173,0.27946316,3706.0,3705.9,7.64010744]
[1733319203174,3.16e-06,3706.0,3705.9,7.64010744]
[1733319203377,3.16e-06,3706.0,3705.9,7.613129]
[1733319203972,1.601,3707.7,3707.6,2.69716]
[1733319204162,0.5,3707.8,3707.7,2.69708]
[1733319205080,0.5,3707.8,3707.7,2.96948462]
[1733319205704,0.27928101,3710.0,3707.9,1.5603]
[1733319205705,8.84,3709.8,3707.9,1.5603]
[1733319205869,0.30260003,3710.8,3707.9,1.5603]
[1733319205870,0.53071547,3710.5,3708.8,3.0]
[1733319206073,0.1619421,3710.8,3709.8,2.69554]
[1733319206074,8.84,3710.7,3709.8,2.69554]
[1733319206522,0.1619421,3710.8,3710.0,2.69539]
[1733319206797,0.1619421,3710.8,3710.1,0.02694998]
[1733319207002,0.1619421,3710.8,3710.1,2.69533]
[1733319207206,0.1619421,3710.8,3709.7,0.02694825]
[1733319207370,0.1619421,3710.8,3709.9,2.69544]
[1733319207570,0.1619421,3710.8,3709.5,2.72272778]
[1733319207895,0.1619421,3710.8,3710.1,2.69532]
[1733319208258,0.1619421,3710.8,3709.7,2.69563]
[1733319208457,0.1619421,3710.8,3709.6,2.96794278]
[1733319208671,1.6066,3710.7,3708.9,0.3]
[1733319208856,8.84,3710.4,3708.7,1.5795]
[1733319209079,0.1619421,3710.8,3708.7,1.5795]
[1733319209080,8.84,3710.5,3709.2,2.69595]
[1733319209608,3.0,3710.4,3708.9,1.5795]
[1733319209770,3.0,3710.4,3709.0,0.02695668]
[1733319209973,8.84,3710.5,3709.2,2.69598]
[1733319210268,8.84,3710.5,3709.2,2.72293426]
[1733319210469,8.84,3710.5,3709.2,2.69598]
[1733319210689,0.1619421,3710.8,3709.0,0.16064567]
[1733319210690,7.39623897,3710.8,3709.0,0.16064567]
[1733319210899,7.39623897,3710.8,3710.3,3.0]
[1733319210900,0.1619421,3710.8,3710.3,3.0]
[1733319211106,0.1619421,3710.8,3710.4,0.32694557]
[1733319211311,0.1619421,3710.8,3709.5,3.0]
[1733319211455,0.1619421,3710.8,3709.4,1.6221]
[1733319212058,0.1619421,3710.8,3709.7,3.0]
[1733319212261,0.1619421,3710.8,3710.0,2.69539]
[1733319212489,0.1619421,3710.8,3710.1,0.02694866]
[1733319212702,0.1619421,3710.8,3709.6,0.02694706]
[1733319212906,0.1619421,3710.8,3710.4,2.69507]
[1733319213080,0.1619421,3710.8,3710.7,1.5797]
[1733319213890,0.27966152,3712.7,3710.7,1.5797]
[1733319214205,9.92754687,3713.0,3711.3,2.69445]
[1733319214410,4.29727,3713.6,3710.8,2.72176576]
[1733319214411,7.23429687,3713.4,3711.4,0.02693656]
[1733319214611,7.66402387,3713.5,3712.0,2.69394]
[1733319214765,7.66402387,3713.5,3712.1,0.02693164]
[1733319215469,7.66402387,3713.5,3712.0,2.69394]
[1733319215665,7.66402387,3713.5,3711.5,2.69432]
[1733319215666,7.66402387,3713.5,3712.1,2.72079164]
[1733319215870,0.53158206,3714.1,3711.7,1.5797]
[1733319215871,1.6044,3713.3,3711.7,1.5797]
[1733319216065,1.6044,3713.3,3711.9,2.69401]
[1733319216776,1.6044,3713.3,3711.2,1.5797]
[1733319216777,3.0,3713.0,3711.2,1.5797]
[1733319217206,2.69334,3712.9,3711.2,4.27417]
[1733319217513,5.69317,3713.1,3711.3,0.02694014]
[1733319217822,5.69317,3713.1,3711.2,1.5797]
[1733319217823,2.69354,3712.6,3711.2,1.5797]
[1733319217987,0.429727,3713.0,3711.3,2.69443]
[1733319218310,2.69346,3712.7,3711.2,1.5797]
[1733319218527,0.429727,3713.0,3711.3,2.72134919]
[1733319218692,2.69356,3712.6,3711.2,1.5797]
[1733319218893,7.50365287,3712.5,3711.3,2.69447]
[1733319219203,10.19729287,3712.5,3711.2,1.5797]
[1733319219382,7.50365287,3712.5,3711.2,1.5797]
[1733319219779,7.23429687,3712.2,3710.7,1.5707]
[1733319220093,7.23429687,3712.2,3710.8,2.69477]
[1733319220444,10.20520337,3712.2,3710.8,3.17837378]
[1733319220720,10.20520337,3712.2,3710.9,2.69475]
[1733319220881,7.23429687,3712.1,3711.0,2.69469]
[1733319221075,7.23429687,3712.1,3710.9,0.02694159]
[1733319221076,7.23429687,3712.0,3710.8,3.17840378]
[1733319221281,7.23429687,3712.0,3710.9,0.02694159]
[1733319221507,7.23429687,3712.0,3710.8,3.17834378]
[1733319221725,7.23429687,3712.0,3710.7,1.5707]
[1733319221726,7.66402387,3712.0,3710.7,1.5707]
[1733319221894,7.23429687,3711.9,3710.1,2.69532]
[1733319222100,0.429727,3712.0,3709.4,2.69585]
[1733319222101,7.23429687,3710.7,3709.4,2.69585]
[1733319222325,2.69462,3711.1,3709.2,1.5584]
[1733319222531,0.5464425,3711.1,3709.9,2.69544]
[1733319222888,3.2410625,3711.1,3709.9,2.69544]
[1733319223320,2.69477,3710.9,3709.3,0.17459981]
[1733319223487,0.5464425,3711.1,3709.3,0.17459981]
[1733319223488,0.5464425,3711.1,3709.6,2.69568]
[1733319223701,0.5464425,3711.1,3709.0,0.55038798]
[1733319223702,1.5829,3710.6,3709.0,0.55038798]
[1733319223887,1.5829,3710.6,3708.7,1.5656]
[1733319223888,0.429727,3710.5,3708.7,1.5656]
[1733319224126,9.92956687,3710.2,3708.7,1.5656]
[1733319224526,9.92956687,3710.2,3707.9,2.69691]
[1733319224527,1.5178,3709.6,3708.1,1.5053]
[1733319224763,4.21352,3709.6,3708.1,1.5053]
[1733319224966,4.21352,3709.6,3708.4,2.69656]
[1733319225165,1.113706,3709.6,3708.4,3.116746]
[1733319225972,5.69585,3709.5,3708.2,2.69672]
[1733319226138,3.0,3709.5,3708.3,2.69659]
[1733319226475,3.0,3709.5,3708.4,2.69655]
[1733319226762,5.69581,3709.5,3708.2,2.69669]
[1733319227170,5.69581,3709.5,3708.4,2.69657]
[1733319227531,5.69581,3709.5,3708.1,1.5053]
[1733319227761,2.69587,3709.4,3708.2,2.69671]
[1733319228072,3.5464425,3709.5,3708.1,1.98000926]
[1733319228288,6.2422425,3709.5,3708.3,2.69663]
[1733319228570,1.113706,3709.6,3708.8,2.69627]
[1733319229281,7.23429687,3709.8,3708.9,0.02695861]
[1733319229489,3.19487,3710.8,3709.3,1.5031]
[1733319229490,7.23429687,3710.7,3709.3,1.5031]
[1733319229685,7.23429687,3710.7,3709.6,2.6957]
[1733319229969,4.7067,3710.8,3709.4,0.15031]
[1733319229970,2.0118,3710.8,3709.7,0.0269533]
[1733319230275,2.0118,3710.8,3710.0,2.69534]
[1733319230573,0.5,3710.8,3710.7,2.6949]
[1733319231517,0.5,3710.8,3710.7,2.96439]
[1733319231984,0.5,3710.8,3710.7,7.63923524]
[1733319232208,0.5,3710.8,3710.7,7.61229]
[1733319234982,1e-05,3710.8,3710.7,7.61229]
[1733319235341,1e-05,3710.8,3710.7,4.61229]
[1733319235545,1e-05,3710.8,3710.7,2.6949]
[1733319235740,1e-05,3710.8,3710.5,2.69499]
[1733319235940,1e-05,3710.8,3710.2,1.59]
[1733319236236,1e-05,3710.8,3710.4,2.69506]
[1733319236474,1e-05,3710.8,3710.7,2.6949]
[1733319236684,1e-05,3710.8,3710.7,2.96439]
[1733319236982,1e-05,3710.8,3710.7,2.99133305]
[1733319237782,1e-05,3710.8,3710.7,2.96439]
[1733319239966,1e-05,3710.8,3710.7,2.6949]
[1733319241295,1e-05,3710.8,3710.0,0.52841876]
[1733319241465,1e-05,3710.8,3710.7,2.6949]
[1733319242158,1e-05,3710.8,3710.7,4.1967]
[1733319243000,1e-05,3710.8,3710.7,2.6949]
[1733319243356,1e-05,3710.8,3710.7,3.233897]
[1733319243561,1e-05,3710.8,3710.5,2.69504]
[1733319243856,2.69487,3710.8,3709.6,2.69568]
[1733319244095,9.92916687,3710.8,3709.6,2.69568]
[1733319244268,7.23430687,3710.8,3709.4,0.15031]
[1733319244472,7.23429687,3710.7,3709.3,2.69589]
[1733319244684,2.69505,3710.5,3709.4,2.69585]
[1733319244869,1.6296,3710.4,3709.4,2.69585]
[1733319245262,1.6296,3710.4,3709.5,2.69577]
[1733319246089,1.6296,3710.4,3709.7,2.69556]
[1733319246498,1.6296,3710.4,3709.0,0.52915501]
[1733319246499,7.23429687,3710.3,3709.6,2.69569]
[1733319246730,7.23429687,3710.3,3709.8,2.69553]
[1733319247536,3.0,3710.2,3709.3,2.69592]
[1733319247736,7.23429687,3710.3,3709.4,0.0269563]
[1733319247955,7.23429687,3710.3,3709.5,2.69575]
[1733319248243,7.23429687,3710.3,3709.4,0.02695274]
[1733319248538,7.23429687,3710.3,3710.2,2.69527]
[1733319248742,7.23429687,3710.3,3709.8,2.69551]
[1733319249035,1e-05,3710.8,3709.1,3.0]
[1733319249036,7.23429687,3710.7,3709.1,3.0]
[1733319249240,7.23429687,3710.7,3709.4,2.69583]
[1733319249444,7.23429687,3710.7,3710.1,2.69533]
[1733319249611,7.23429687,3710.7,3709.7,2.69558]
[1733319249816,7.23429687,3710.7,3709.7,0.27225324]
[1733319250135,1.5928,3710.4,3708.7,3.0]
[1733319250349,1.5928,3710.4,3708.7,2.69634]
[1733319250350,2.69534,3710.1,3708.7,2.69634]
[1733319250726,0.24996923,3710.0,3708.5,1.5086]
[1733319250927,7.23429687,3709.8,3708.5,1.5086]
[1733319251132,7.23429687,3709.8,3708.1,3.17144926]
[1733319251133,2.69594,3709.3,3708.1,0.47470926]
[1733319251441,2.69578,3709.5,3708.2,0.46915693]
[1733319251751,3.0,3709.6,3708.2,3.16580693]
[1733319251955,0.24989329,3709.5,3708.2,0.46915693]
[1733319252155,7.28843,3709.7,3708.4,2.69655]
[1733319252326,0.24985774,3709.6,3708.5,0.02696165]
[1733319252529,4.5928,3709.7,3708.6,2.69643]
[1733319252863,0.24983193,3709.6,3708.3,2.69658]
[1733319253161,0.2498169,3709.5,3708.0,2.06956701]
[1733319253335,2.69581,3709.5,3708.1,0.2069567]
[1733319253536,10.23429687,3709.4,3708.1,0.2069567]
[1733319253735,3.0,3709.3,3708.2,2.69671]
[1733319254135,3.0,3709.3,3708.0,0.54956701]
[1733319254867,5.69592,3709.3,3708.1,2.69673]
[1733319255161,3.0,3709.3,3708.2,2.69672]
[1733319255361,5.69593,3709.3,3708.2,2.69672]
[1733319255763,3.0,3709.3,3708.0,0.54956701]
[1733319256067,3.0,3709.3,3708.0,3.24637701]
[1733319256474,3.0,3709.3,3708.0,0.54956701]
[1733319257271,3.0,3709.3,3707.6,1.5228]
[1733319257272,1.5473,3709.0,3707.6,1.5228]
[1733319257426,2.69658,3708.4,3707.4,3.0]
[1733319257769,2.69625,3708.9,3707.0,2.69758]
[1733319257770,2.69673,3708.2,3707.0,2.69758]
[1733319257972,9.93088687,3708.4,3707.4,2.6973]
[1733319258269,2.69704,3707.8,3707.1,0.269758]
[1733319258432,2.6969,3708.0,3706.6,0.54329673]
[1733319258641,1.6399,3708.2,3706.9,2.6976]
[1733319258829,2.6969,3708.0,3706.6,0.54329673]
[1733319259167,1.6399,3708.2,3707.0,2.69758]
[1733319259168,4.33662,3708.2,3707.0,2.69758]
[1733319259381,1.6399,3708.2,3707.1,0.02697219]
[1733319259532,1.6399,3708.2,3707.4,2.69726]
[1733319259732,1.6399,3708.2,3707.2,0.27245122]
[1733319260170,2.69686,3708.1,3706.9,2.69765]
[1733319260390,1.6399,3708.2,3706.6,2.69782]
[1733319260534,4.5257,3708.0,3706.3,0.08]
[1733319260880,7.22257,3708.0,3706.4,0.53709164]
[1733319261234,4.5257,3708.0,3707.1,2.69748]
[1733319261440,1.5257,3708.0,3707.2,0.269748]
[1733319261655,1.5257,3708.0,3706.5,0.02696902]
[1733319261871,1.5257,3708.0,3706.5,3.0]
[1733319262076,1.5257,3708.0,3706.6,2.72485901]
[1733319262234,1.5257,3708.0,3707.2,2.69741]
[1733319262440,1.5257,3708.0,3706.7,1.5883]
[1733319262441,1.5257,3708.0,3707.4,2.6973]
[1733319262743,1.5257,3708.0,3707.4,0.26973]
[1733319262944,1.5257,3708.0,3707.0,0.53692976]
[1733319263360,1.6466,3708.4,3707.1,0.02696902]
[1733319263673,1.6466,3708.4,3707.9,2.69693]
[1733319263868,1.6466,3708.4,3708.0,2.6968]
[1733319264067,1.6466,3708.4,3707.6,2.69716]
[1733319264068,1.6466,3708.4,3707.9,2.69691]
[1733319264257,1.6466,3708.4,3707.6,2.72412605]
[1733319264434,7.23429687,3708.9,3707.6,2.72412605]
[1733319264435,8.77039687,3708.9,3707.7,0.27241261]
[1733319264636,8.77039687,3708.9,3708.0,2.69683]
[1733319264943,8.77039687,3708.9,3707.8,2.69699]
[1733319265137,8.77039687,3708.9,3707.7,0.27241261]
[1733319265138,2.69635,3708.8,3707.7,0.27241261]
[1733319265340,2.69645,3708.6,3707.5,2.69718]
[1733319265546,1.5663,3708.7,3707.0,0.53692976]
[1733319265848,4.5663,3708.4,3707.4,2.6973]
[1733319266074,1.5663,3708.4,3707.9,2.69692]
[1733319266248,1.5663,3708.4,3707.3,0.02696533]
[1733319266449,1.5663,3708.4,3706.9,0.54896118]
[1733319266450,1.5663,3708.4,3707.9,2.69688]
[1733319266691,1.5663,3708.4,3708.0,2.69683]
[1733319267054,1.5663,3708.4,3707.9,0.269688]
[1733319267282,8.81359687,3708.9,3708.1,2.69678]
[1733319267484,8.81359687,3708.9,3707.8,2.69694]
[1733319267687,7.23429687,3708.7,3707.0,3.0]
[1733319267872,9.93076687,3708.6,3707.3,0.53956892]
[1733319268058,7.23429687,3708.6,3707.3,0.53956892]
[1733319268387,1.6147,3708.2,3707.0,2.69754]
[1733319268692,1.6147,3708.2,3706.9,2.69762]
[1733319268898,1.6147,3708.2,3707.3,2.69737]
[1733319270394,1.6147,3708.2,3707.0,3.23598537]
[1733319270786,1.6147,3708.2,3707.4,2.69723]
[1733319270992,1.6147,3708.2,3707.4,2.967013]
[1733319271776,1.6147,3708.2,3707.5,2.69716]
[1733319272103,1.6147,3708.2,3707.4,0.269723]
[1733319272461,1.6147,3708.2,3707.5,2.6972]
[1733319272666,1.6147,3708.2,3707.4,0.269723]
[1733319272907,1.6147,3708.2,3707.2,2.69743]
[1733319272908,4.31143,3708.2,3707.2,2.69743]
[1733319273312,1.6147,3708.2,3707.3,2.69731]
[1733319273610,1.6147,3708.2,3707.1,2.69752]
[1733319273769,1.6147,3708.2,3707.0,0.53843537]
[1733319274769,1.5618,3708.0,3706.3,3.08]
[1733319274996,1.6286,3707.8,3706.5,2.69789]
[1733319275170,1.6286,3707.8,3706.9,2.69765]
[1733319275565,4.32562,3707.8,3706.4,3.82379646]
[1733319275772,4.32562,3707.8,3706.6,2.69782]
[1733319275972,2.69711,3707.7,3706.6,2.69782]
[1733319276191,7.23429687,3707.6,3706.6,2.69782]
[1733319276403,7.23429687,3707.6,3706.6,0.39035965]
[1733319276613,7.23429687,3707.6,3706.8,2.69771]
[1733319277066,7.23429687,3707.6,3706.4,0.54796146]
[1733319277358,7.23429687,3707.6,3706.7,2.69775]
[1733319278661,7.23429687,3707.6,3706.8,2.6977]
[1733319279331,7.23429687,3707.6,3706.5,2.69789]
[1733319279531,1.6286,3707.8,3706.3,2.77808]
[1733319279532,1.6061,3707.3,3706.3,2.77808]
[1733319279861,2.69761,3707.0,3706.3,0.08]
[1733319280377,7.23429687,3707.0,3706.3,0.08]
[1733319280864,7.23429687,3707.0,3706.3,2.77809]
[1733319281076,7.23429687,3707.0,3706.3,0.08]
[1733319281535,7.23429687,3707.0,3706.9,2.69767]
[1733319281737,7.23429687,3707.0,3706.9,0.269767]
[1733319281970,7.23429687,3707.0,3706.7,2.69781]
[1733319282481,7.23429687,3707.0,3706.3,0.08]
[1733319282482,7.23429687,3707.0,3706.9,2.69767]
[1733319283468,1.6061,3707.8,3707.0,2.69756]
[1733319283675,1.6061,3707.8,3707.5,2.69721]
[1733319284229,1.6061,3707.8,3707.7,2.69708]
[1733319284546,1.6061,3707.8,3706.7,0.53525733]
[1733319284547,1.6061,3707.8,3706.9,2.6976]
[1733319284747,1.6061,3707.8,3705.7,3.0]
[1733319284748,7.23429687,3707.7,3705.7,3.0]
[1733319284947,1.6599,3707.4,3706.4,2.69797]
[1733319285355,1.6599,3707.4,3706.6,2.69786]
[1733319285572,1.6599,3707.4,3706.1,3.24364042]
[1733319285573,1.6599,3707.4,3706.4,2.69796]
[1733319285879,8.84429687,3707.0,3706.0,2.69831]
[1733319286080,8.84429687,3707.0,3706.2,2.69817]
[1733319286259,8.84429687,3707.0,3706.0,2.6983]
[1733319286462,11.54189687,3707.0,3706.0,2.6983]
[1733319286641,2.69777,3706.8,3705.9,0.54540644]
[1733319286981,1.61,3707.0,3706.2,2.69816]
[1733319287162,1.61,3707.0,3706.2,0.0269798]
[1733319287466,1.61,3707.0,3705.9,0.54540644]
[1733319287467,1.61,3707.0,3706.5,2.69795]
[1733319288230,1.61,3707.0,3706.6,2.69786]
[1733319288434,1.61,3707.0,3706.4,2.69801]
[1733319288672,1.61,3707.0,3706.5,0.277801]
[1733319289369,1.61,3707.0,3706.0,2.69826]
[1733319289875,1.61,3707.0,3705.9,0.54540644]
[1733319290031,1.61,3707.0,3706.4,2.69801]
[1733319290232,1.61,3707.0,3706.5,2.69794]
[1733319290579,1.61,3707.0,3706.3,2.77807]
[1733319290734,1.61,3707.0,3706.6,2.69786]
[1733319290933,7.23429687,3708.2,3707.5,2.69722]
[1733319291673,7.23429687,3708.2,3707.2,2.69738]
[1733319292290,7.23429687,3708.1,3707.3,2.69731]